bitfinex/quotes_ETHUSD_20250603
["timestamp","ask_amount","ask_price","bid_price","bid_amount"]
[1748984756677,1.2642,2609.3,2608.6,14.402]
[1748984756890,1.2642,2609.3,2608.6,18.23544918]
[1748984757061,1.2642,2609.3,2608.8,8.0]
[1748984757696,1.2642,2609.3,2608.7,8.0]
[1748984760692,1.2642,2609.3,2608.8,14.412]
[1748984762373,1.2642,2609.3,2608.8,14.80247362]
[1748984762571,9.1486662,2609.3,2608.8,8.39047362]
[1748984762766,0.02,2609.9,2608.3,0.0529]
[1748984762767,1.2179,2608.9,2608.3,1.712]
[1748984762966,1.2179,2608.9,2608.4,8.0]
[1748984763202,1.2179,2608.9,2608.4,19.77694381]
[1748984763420,1.2179,2608.9,2608.6,8.0]
[1748984763579,0.02,2608.9,2608.5,11.88644892]
[1748984763787,0.02,2608.9,2608.5,0.0529]
[1748984764000,0.02,2608.9,2608.4,18.0]
[1748984764197,0.02,2608.9,2608.4,3.83376723]
[1748984764408,0.02,2608.9,2608.3,10.40466561]
[1748984764728,0.02,2608.9,2608.2,3.88694135]
[1748984764729,0.02,2608.9,2608.5,8.0]
[1748984764920,1.2192,2608.8,2608.1,1.711]
[1748984765518,1.2192,2608.8,2608.1,8.141]
[1748984766187,1.2192,2608.8,2608.1,8.8063905]
[1748984766519,1.2192,2608.8,2608.2,8.0]
[1748984766721,1.2192,2608.8,2608.3,6.912044]
[1748984766926,1.2192,2608.8,2608.2,11.88694225]
[1748984767112,1.2192,2608.8,2608.4,10.0]
[1748984767315,1.2192,2608.8,2608.2,8.0529]
[1748984767796,1.2192,2608.8,2608.3,3.239832]
[1748984768001,0.02,2608.9,2608.3,3.207919]
[1748984768187,0.02,2608.9,2608.4,10.0]
[1748984768381,0.02,2608.9,2608.3,3.803919]
[1748984768582,0.02,2608.9,2608.4,10.0]
[1748984768819,0.02,2608.9,2608.3,6.323919]
[1748984769121,0.02,2608.9,2608.4,0.38274902]
[1748984769325,0.02,2608.9,2608.4,10.0]
[1748984769532,0.02,2608.9,2608.3,6.323919]
[1748984769731,0.02,2608.9,2608.5,8.0]
[1748984769911,0.02,2608.9,2608.3,8.0]
[1748984771637,0.02,2608.9,2608.4,8.0]
[1748984771793,0.02,2608.9,2608.2,11.88694165]
[1748984771994,0.02,2608.9,2608.4,10.0]
[1748984772193,0.02,2608.9,2608.5,8.0]
[1748984772510,1.2576,2609.8,2608.7,8.0529]
[1748984772729,1.2576,2609.8,2608.8,1.711]
[1748984774640,1.2576,2609.8,2608.8,2.09361095]
[1748984776424,1.2193,2609.4,2608.8,0.38261095]
[1748984776626,1.2193,2609.4,2608.6,1.711]
[1748984778339,1.2193,2609.4,2608.6,9.711]
[1748984778535,1.2193,2609.4,2608.7,18.0]
[1748984778738,1.2193,2609.4,2608.8,8.0]
[1748984778938,1.2193,2609.4,2608.6,9.711]
[1748984779657,1.2193,2609.4,2608.6,1.711]
[1748984779863,1.2193,2609.4,2608.8,8.0]
[1748984780734,1.2193,2609.4,2608.8,8.38918475]
[1748984782469,1.2193,2609.4,2608.9,1.711]
[1748984789575,1.2193,2609.4,2609.0,8.0]
[1748984789799,1.2193,2609.4,2608.9,9.711]
[1748984790322,1.2193,2609.4,2609.0,1.711]
[1748984790526,1.2193,2609.4,2609.0,8.095]
[1748984793009,1.2193,2609.4,2609.1,8.0]
[1748984793213,0.02,2609.9,2609.1,8.0]
[1748984793214,1.1992,2609.8,2609.1,8.0]
[1748984793385,1.1992,2609.8,2609.1,11.83272912]
[1748984793782,1.1992,2609.8,2609.1,4.58369033]
[1748984794021,1.1992,2609.8,2609.1,3.83272912]
[1748984794227,1.1992,2609.8,2609.0,11.92781939]
[1748984796026,1.1992,2609.8,2609.3,8.0]
[1748984796218,1.1992,2609.8,2609.4,3.83222107]
[1748984796527,1.1992,2609.8,2609.3,11.83236875]
[1748984796685,1.1992,2609.8,2609.3,3.83236875]
[1748984797124,1.1992,2609.8,2609.3,8.0]
[1748984797286,1.1992,2609.8,2609.3,3.83242197]
[1748984797627,1.1992,2609.8,2609.4,0.3832422]
[1748984798241,1.1492,2609.8,2609.4,0.3832422]
[1748984799728,0.02,2609.9,2609.4,0.3832422]
[1748984799913,0.02,2609.9,2609.6,8.0]
[1748984800231,0.02,2609.9,2609.7,1.711]
[1748984801191,1.1776,2609.8,2609.7,1.711]
[1748984802227,0.02,2609.9,2609.7,1.711]
[1748984802602,0.02,2609.9,2609.2,1.2725296]
[1748984802802,1.1776,2609.8,2609.3,1.711]
[1748984803130,2.21222662,2609.8,2609.3,1.711]
[1748984804032,1.1776,2609.8,2609.3,1.711]
[1748984804235,1.1776,2609.8,2609.0,9.711]
[1748984804418,1.2113,2609.6,2609.0,1.711]
[1748984806050,1.2113,2609.6,2609.2,8.0]
[1748984806347,1.1946,2609.9,2609.6,3.83190564]
[1748984806551,1.1946,2609.9,2609.7,2.09419056]
[1748984806695,0.02,2609.9,2609.7,2.09419056]
[1748984806896,0.02,2609.9,2609.8,8.0]
[1748984807126,0.02,2609.9,2609.8,11.83171124]
[1748984807803,0.02,2609.9,2609.8,11.88381124]
[1748984808003,0.02,2609.9,2609.8,18.60121584]
[1748984808413,1.1746,2610.6,2610.3,8.0]
[1748984808710,1.1746,2610.6,2610.4,1.692]
[1748984808921,1.2408,2610.9,2610.7,8.0]
[1748984809230,1.2408,2610.9,2610.6,3.83040957]
[1748984809231,1.2408,2610.9,2610.4,13.57479283]
[1748984809535,1.2408,2610.9,2610.4,13.95823909]
[1748984809732,1.2408,2610.9,2610.5,8.0]
[1748984812251,1.2408,2610.9,2610.6,8.0]
[1748984812562,0.02,2610.9,2610.6,11.83046318]
[1748984812868,0.02,2610.9,2610.6,8.0]
[1748984813067,0.02,2610.9,2610.5,11.83062172]
[1748984813350,0.02,2610.9,2610.6,3.83045022]
[1748984815144,0.02,2610.9,2610.8,3.8302436]
[1748984815520,0.02,2610.9,2610.8,11.8302436]
[1748984816350,0.02,2610.9,2610.8,21.8823436]
[1748984816552,1.1526,2611.6,2611.1,8.0]
[1748984816750,1.1526,2611.6,2611.2,1.691]
[1748984828796,1.25911594,2611.8,2611.2,1.691]
[1748984828797,0.10651594,2611.8,2611.5,10.0]
[1748984828996,1.2178,2612.8,2612.1,8.0]
[1748984829296,1.2178,2612.8,2612.1,14.369]
[1748984829453,1.2178,2612.8,2612.2,8.0]
[1748984829657,0.02,2612.9,2612.3,0.0381]
[1748984829893,0.02,2612.9,2612.3,3.8661228]
[1748984830198,0.02,2612.9,2612.5,8.0]
[1748984830496,0.02,2612.9,2612.5,0.38595269]
[1748984830693,0.02,2612.9,2612.3,3.86611705]
[1748984830869,0.02,2612.9,2612.3,0.0381]
[1748984832197,0.02,2612.9,2612.5,8.0]
[1748984833053,0.02,2612.9,2612.5,8.38967096]
[1748984834991,0.02,2612.9,2612.6,1.69]
[1748984835786,0.02,2612.9,2612.7,11.86555516]
[1748984836100,0.02,2612.9,2612.8,10.0]
[1748984836267,0.02,2612.9,2612.8,8.0]
[1748984836897,1.2519,2613.8,2613.0,0.0381]
[1748984837065,0.02,2613.9,2613.2,8.0]
[1748984837265,0.02,2613.9,2613.1,9.13053099]
[1748984837266,0.02,2613.9,2613.6,8.0]
[1748984837466,0.02,2613.9,2613.3,3.82646232]
[1748984837467,0.02,2613.9,2613.4,13.51635282]
[1748984837695,0.02,2613.9,2613.8,11.82584742]
[1748984837894,0.02,2613.9,2613.8,18.19284742]
[1748984838856,0.02,2613.9,2613.8,18.76046446]
[1748984839055,0.02,2613.9,2613.8,18.69933004]
[1748984839307,0.02,2613.9,2613.8,22.52517746]
[1748984840098,0.02,2613.9,2613.8,17.97319704]
[1748984840310,1.245,2613.9,2613.8,8.0]
[1748984840453,0.02,2613.9,2613.8,8.0]
[1748984842782,0.37828702,2613.9,2613.8,8.0]
[1748984842983,0.02,2613.9,2613.8,8.0]
[1748984843182,0.02,2613.9,2613.4,2.26956687]
[1748984843382,0.02,2613.9,2613.4,12.26956687]
[1748984843587,0.02,2613.9,2613.6,10.0]
[1748984843903,0.02,2613.9,2613.6,6.364]
[1748984844263,1.225,2613.7,2612.6,10.0381]
[1748984844471,9.13053099,2613.8,2612.6,10.0381]
[1748984844472,1.225,2613.5,2612.8,10.0]
[1748984844662,1.225,2613.5,2612.7,7.915001]
[1748984844857,1.225,2613.5,2612.7,10.0]
[1748984845098,1.225,2613.4,2612.6,8.056]
[1748984845398,2.36410841,2613.4,2612.7,8.0]
[1748984845754,1.13910841,2613.4,2612.6,1.689]
[1748984845959,1.225,2613.3,2612.6,8.055]
[1748984846195,9.13053099,2613.2,2612.5,8.65167096]
[1748984846514,1.225,2613.1,2612.6,8.0]
[1748984847280,0.35841919,2613.0,2612.6,8.0]
[1748984847500,1.225,2613.1,2612.6,8.0]
[1748984849372,1.1615,2613.6,2612.6,11.86640153]
[1748984849576,1.1615,2613.6,2612.6,8.0388]
[1748984849787,0.35840707,2613.5,2612.6,8.0388]
[1748984849989,1.06504381,2613.5,2612.6,8.0388]
[1748984850586,1.1615,2613.6,2613.1,12.802331]
[1748984850786,1.1615,2613.6,2613.2,16.054]
[1748984856954,0.02,2613.9,2613.2,19.88065177]
[1748984857176,1.2626,2613.8,2613.2,16.054]
[1748984857980,1.2626,2613.8,2613.2,19.88072396]
[1748984858259,1.2626,2613.8,2613.2,19.8807061]
[1748984858428,1.2626,2613.8,2613.3,3.82651104]
[1748984858765,1.2626,2613.8,2613.4,11.82629508]
[1748984858919,0.02,2613.9,2613.6,8.0]
[1748984859643,0.02,2613.9,2613.6,3.82613508]
[1748984859833,0.02,2613.9,2613.6,6.528913]
[1748984860029,0.02,2613.9,2613.5,8.0]
[1748984860357,0.02,2613.9,2613.3,11.86529993]
[1748984860721,0.02,2613.9,2612.9,0.55]
[1748984860722,1.2649,2613.8,2612.8,0.0388]
[1748984860916,1.2649,2613.8,2613.0,1.689]
[1748984861163,1.2649,2613.7,2613.2,8.0]
[1748984861759,1.2649,2613.7,2613.0,1.689]
[1748984861935,1.2649,2613.7,2613.2,6.353]
[1748984862328,1.2649,2613.7,2613.3,8.0]
[1748984864938,1.2649,2613.7,2613.3,11.82655633]
[1748984865340,1.2649,2613.7,2613.3,8.0]
[1748984866065,1.2649,2613.7,2613.3,11.82651103]
[1748984866228,0.02,2613.9,2613.3,8.0]
[1748984866425,0.02,2613.9,2613.5,8.0]
[1748984867129,0.02,2613.9,2613.3,11.82649539]
[1748984868436,0.02,2613.9,2613.4,3.82633844]
[1748984868659,0.02,2613.9,2613.3,11.82650575]
[1748984869262,0.02,2613.9,2613.3,8.0]
[1748984869469,0.02,2613.9,2613.4,6.349]
[1748984871669,0.02,2613.9,2613.4,10.17541305]
[1748984872667,0.02,2613.9,2613.5,3.82626998]
[1748984873177,0.02,2613.9,2613.4,10.17535182]
[1748984873673,0.02,2613.9,2613.4,6.349]
[1748984873861,0.02,2613.9,2613.5,10.0]
[1748984874037,0.02,2613.9,2613.6,9.681]
[1748984875988,0.02,2613.9,2613.7,1.681]
[1748984880809,0.02,2613.9,2613.8,14.328]
[1748984886412,0.02,2613.9,2613.8,8.0]
[1748984886605,0.02,2613.9,2613.8,16.001]
[1748984888124,0.02,2613.9,2613.8,8.0]
[1748984888325,1.2782,2613.9,2613.8,8.0]
[1748984889213,0.02,2613.9,2613.8,8.0]
[1748984891608,0.02,2613.9,2613.7,8.002]
[1748984891817,0.02,2613.9,2613.8,8.0]
[1748984895245,0.02,2613.9,2613.7,8.002]
[1748984895444,0.02,2613.9,2613.8,8.0]
[1748984901351,0.02,2613.9,2613.8,6.32]
[1748984908767,0.02,2613.9,2613.8,14.32]
[1748984910171,0.02,2613.9,2613.8,8.0]
[1748984910355,1.2664,2613.9,2613.8,8.0]
[1748984910877,1.83164737,2613.9,2613.8,8.0]
[1748984915698,1.2664,2613.9,2613.8,8.0]
[1748984918501,1.2664,2613.9,2613.4,1.665]
[1748984919515,1.2664,2613.9,2613.4,7.985]
[1748984923517,1.2664,2613.9,2613.4,11.8114196]
[1748984923717,1.2664,2613.9,2613.5,8.0]
[1748984932319,1.2664,2613.9,2613.4,9.665]
[1748984932625,1.2664,2613.9,2613.6,8.0]
[1748984936634,1.2664,2613.9,2613.4,1.665]
[1748984936804,1.2664,2613.9,2613.6,8.0]
[1748984937806,1.2664,2613.9,2613.5,6.318]
[1748984938007,1.2664,2613.9,2613.6,1.664]
[1748984940670,6.21772103,2613.9,2613.3,10.0]
[1748984940870,6.21772103,2613.9,2613.3,9.664]
[1748984942359,1.83164737,2613.9,2613.3,9.664]
[1748984942523,5.65247366,2613.9,2613.3,9.664]
[1748984942921,0.02,2613.9,2613.4,5.734171]
[1748984943138,0.02,2613.9,2613.6,8.0]
[1748984944230,0.02,2613.9,2613.4,13.04679224]
[1748984944541,0.02,2613.9,2613.4,13.04685709]
[1748984944744,0.02,2613.9,2613.4,9.2204296]
[1748984944965,0.02,2613.9,2613.6,8.0]
[1748984945269,0.02,2613.9,2613.4,9.2204296]
[1748984945435,1.2255,2613.9,2613.4,13.04686009]
[1748984945637,1.2255,2613.9,2613.4,11.82643049]
[1748984946665,1.2255,2613.9,2613.4,8.0]
[1748984947470,1.2255,2613.9,2613.4,9.2204296]
[1748984948431,1.2255,2613.9,2613.4,8.0]
[1748984948628,1.2255,2613.9,2613.6,8.0]
[1748984948871,1.2255,2613.9,2613.4,11.82634652]
[1748984949605,0.02,2613.9,2613.6,8.0]
[1748984950526,0.02,2613.9,2613.7,1.664]
[1748984953815,0.02,2613.9,2613.8,8.0]
[1748984954214,0.02,2613.9,2613.8,1.664]
[1748984956025,0.02,2613.9,2613.7,1.664]
[1748984956224,0.02,2613.9,2613.7,9.664]
[1748984956225,1.2125,2613.9,2613.7,9.664]
[1748984956633,0.02,2613.9,2613.7,9.664]
[1748984960538,0.02,2613.9,2613.8,1.664]
[1748984960740,1.1675,2613.8,2613.3,1.2204296]
[1748984960900,4.38607366,2613.7,2613.2,1.664]
[1748984961101,4.38607366,2613.3,2613.2,1.664]
[1748984961464,1.1675,2613.4,2613.2,1.664]
[1748984967027,1.1675,2613.4,2612.9,1.662]
[1748984967218,1.1675,2613.4,2612.9,9.662]
[1748984969403,1.1675,2613.4,2612.9,13.48914475]
[1748984969621,1.1675,2613.4,2613.0,8.0]
[1748984970039,1.1675,2613.4,2612.9,13.48914475]
[1748984970220,1.1675,2613.4,2612.9,9.662]
[1748984970620,1.1675,2613.4,2612.9,13.4891519]
[1748984971365,1.1675,2613.4,2612.9,9.662]
[1748984971576,1.1675,2613.4,2612.9,8.0]
[1748984971729,4.38607366,2613.1,2612.7,1.662]
[1748984971936,1.1689,2612.9,2612.7,1.662]
[1748984973243,1.1689,2612.9,2612.1,1.2204296]
[1748984973448,4.38607366,2612.7,2612.2,1.662]
[1748984973677,1.1689,2612.6,2612.2,1.662]
[1748984975234,1.1689,2612.6,2612.3,10.0]
[1748984981878,1.1689,2612.6,2612.2,1.662]
[1748984983763,0.55,2613.5,2612.2,1.662]
[1748984983764,1.2171,2613.8,2612.5,8.0]
[1748984984081,2.03589428,2614.0,2612.5,11.82769236]
[1748984984082,4.38607366,2613.5,2612.5,11.82769236]
[1748984984281,1.2171,2613.4,2612.5,11.82769236]
[1748984984883,1.2171,2613.4,2612.5,8.0]
[1748984985380,1.2171,2613.4,2612.3,8.0]
[1748984985699,5.57097366,2613.1,2612.2,16.35472424]
[1748984985858,1.1849,2613.0,2612.2,16.35472424]
[1748984988276,1.1849,2613.0,2612.2,2.03972424]
[1748984988583,1.1211,2612.8,2612.3,10.0]
[1748984988744,1.1211,2612.8,2612.2,2.03972424]
[1748984988943,1.1211,2612.8,2612.4,8.0]
[1748984989145,1.1211,2612.8,2612.2,2.03972424]
[1748984989454,1.1211,2612.8,2612.4,8.0]
[1748984989645,1.1211,2612.8,2612.2,2.03972424]
[1748984990195,1.1211,2612.8,2612.3,10.0]
[1748984990404,1.1211,2612.8,2612.2,0.37772424]
[1748984990700,1.1211,2612.8,2612.2,1.662]
[1748984991202,1.2191,2612.7,2612.2,1.662]
[1748984994973,1.1104,2612.6,2612.2,1.66]
[1748984998906,1.1104,2612.6,2612.0,8.0]
[1748984999208,1.1858,2612.4,2612.0,9.661]
[1748985000094,1.1858,2612.4,2612.0,1.661]
[1748985001906,1.74298737,2612.4,2612.0,1.661]
[1748985002067,1.2101,2612.3,2612.0,1.661]
[1748985002826,0.55718737,2612.4,2611.7,1.661]
[1748985002827,1.1374,2612.0,2611.7,1.661]
[1748985013235,4.38607366,2612.7,2611.7,1.661]
[1748985013435,1.2182,2612.6,2611.7,1.661]
[1748985016745,1.177,2612.3,2611.7,1.661]
[1748985021138,1.1191,2612.2,2611.7,1.661]
[1748985022072,4.38607366,2612.1,2611.7,1.661]
[1748985022233,1.1166,2611.8,2611.1,0.02]
[1748985022439,4.38607366,2611.4,2611.1,0.02]
[1748985022665,5.50267366,2611.2,2611.1,0.02]
[1748985026039,1.1166,2611.2,2611.1,0.02]
[1748985028766,1.1166,2611.2,2610.7,1.659]
[1748985028962,1.1166,2611.2,2610.4,0.38141007]
[1748985029167,5.50267366,2611.2,2610.5,11.659]
[1748985029559,5.50267366,2611.2,2610.5,1.659]
[1748985030467,1.1503,2610.7,2610.5,1.659]
[1748985033078,1.1503,2610.7,2610.1,0.02]
[1748985033380,4.38607366,2610.4,2610.1,0.02]
[1748985033582,4.38607366,2610.2,2610.1,0.02]
[1748985033787,5.60247366,2610.2,2610.1,0.02]
[1748985034157,6.15247366,2610.2,2610.1,0.02]
[1748985034503,6.76772103,2610.2,2610.1,0.02]
[1748985050697,7.125629,2610.2,2610.1,0.02]
[1748985050903,6.76772103,2610.2,2610.1,0.02]
[1748985055316,7.12565423,2610.2,2610.1,0.02]
[1748985055736,7.48359317,2610.2,2610.1,0.02]
[1748985055905,7.12565423,2610.2,2610.1,0.02]
[1748985056240,7.48358879,2610.2,2610.1,0.02]
[1748985056451,7.12565423,2610.2,2610.1,0.02]
[1748985058723,1.7646,2610.1,2609.1,1.658]
[1748985058935,4.38607366,2609.7,2609.1,1.658]
[1748985060188,2.47716542,2610.1,2609.1,1.658]
[1748985060465,2.47716542,2610.1,2609.2,4.38607366]
[1748985060466,1.2146,2610.1,2609.2,4.38607366]
[1748985060634,1.2146,2610.1,2609.1,1.658]
[1748985060960,5.60067366,2610.1,2609.1,1.658]
[1748985066995,1.2181,2609.7,2608.8,1.22293499]
[1748985067156,4.38607366,2609.3,2608.8,1.658]
[1748985067558,4.38607366,2608.9,2608.2,2.88093499]
[1748985067774,4.38607366,2608.9,2608.2,1.658]
[1748985068356,4.38607366,2609.1,2608.2,1.658]
[1748985069181,4.38607366,2609.1,2608.2,2.04317933]
[1748985073055,4.38607366,2608.7,2608.1,0.02]
[1748985073216,4.82468103,2608.7,2608.1,1.678]
[1748985074236,0.43860737,2608.7,2608.1,1.678]
[1748985079296,0.43860737,2608.7,2608.0,1.658]
[1748985079484,0.43860737,2608.7,2608.0,2.04949518]
[1748985079788,0.43860737,2608.7,2608.0,1.658]
[1748985080171,1.7169,2609.0,2608.1,14.38607366]
[1748985081838,1.1737,2609.2,2608.3,4.38607366]
[1748985082997,1.1737,2609.2,2608.1,8.22022228]
[1748985083507,1.1737,2609.2,2608.2,3.83400094]
[1748985083707,1.1737,2609.2,2608.1,8.22019598]
[1748985084441,1.1737,2609.2,2608.1,4.38607366]
[1748985085437,1.1737,2609.2,2608.1,8.22024704]
[1748985086749,1.1737,2609.2,2608.1,4.38607366]
[1748985086932,1.1737,2609.2,2608.1,8.22018136]
[1748985087333,1.1737,2609.2,2608.2,3.83405866]
[1748985088847,1.1737,2609.2,2608.5,4.38607366]
[1748985089047,1.1737,2609.2,2608.3,8.21988273]
[1748985089223,1.1948,2609.5,2608.4,1.656]
[1748985089439,1.1948,2609.5,2608.4,11.656]
[1748985089773,1.91868737,2609.5,2608.4,15.48968095]
[1748985090251,1.1588,2609.3,2608.5,1.656]
[1748985094932,1.1588,2609.3,2608.3,8.0]
[1748985095138,4.38607366,2609.0,2608.4,1.656]
[1748985095681,4.38607366,2608.8,2608.4,1.656]
[1748985095847,1.2247,2608.7,2608.4,1.656]
[1748985097474,1.1772,2609.4,2608.4,1.656]
[1748985097674,4.023,2610.0,2608.4,1.656]
[1748985097675,1.1772,2609.2,2608.4,1.656]
[1748985097838,0.55632737,2609.1,2608.4,1.656]
[1748985103101,1.1772,2609.2,2608.4,1.656]
[1748985103304,1.1776,2609.4,2608.5,4.38607366]
[1748985103478,1.1776,2609.8,2608.7,4.38607366]
[1748985103679,0.55836737,2609.7,2608.7,4.38607366]
[1748985103903,1.1776,2609.8,2608.8,10.0]
[1748985104110,1.1776,2609.8,2608.9,4.38607366]
[1748985104281,1.1776,2609.8,2609.0,1.656]
[1748985106406,0.02,2609.9,2609.3,4.38607366]
[1748985106705,0.02,2609.9,2609.2,8.0]
[1748985106925,4.38607366,2609.3,2607.3,1.81023747]
[1748985107132,4.38607366,2607.5,2607.4,1.22183495]
[1748985107280,0.55,2607.9,2607.1,0.02]
[1748985107479,4.38607366,2608.1,2607.4,2.99943744]
[1748985107696,4.38607366,2608.1,2607.2,1.976]
[1748985107940,0.55,2608.4,2607.3,0.1996]
[1748985108080,5.53387366,2608.5,2607.4,1.1441]
[1748985108284,4.38607366,2608.3,2607.4,1.1441]
[1748985109023,4.38607366,2608.1,2607.4,1.1441]
[1748985109318,9.16536464,2608.3,2607.4,1.1441]
[1748985109698,9.16536464,2608.2,2607.4,1.1441]
[1748985112888,1.1478,2608.5,2607.4,1.1441]
[1748985113095,1.1266,2608.9,2607.5,10.53492444]
[1748985113304,1.1266,2608.9,2607.8,8.0]
[1748985113643,0.43860737,2609.2,2608.1,1.2038]
[1748985113644,1.56520737,2609.2,2608.1,1.2038]
[1748985113786,1.1266,2609.2,2608.1,1.2038]
[1748985114420,1.1266,2609.2,2608.2,9.779035]
[1748985115129,1.1266,2609.2,2608.1,11.2038]
[1748985115328,1.1266,2609.2,2608.2,10.0]
[1748985115633,1.1266,2609.2,2608.1,11.2038]
[1748985115852,1.1266,2609.2,2608.2,10.0]
[1748985116055,1.1266,2609.2,2608.1,11.2038]
[1748985116421,0.55,2608.3,2607.7,4.0001]
[1748985116767,0.55,2607.2,2605.7,0.59882359]
[1748985116967,9.71536464,2606.2,2605.1,0.02]
[1748985117169,9.16536464,2605.8,2605.1,0.02]
[1748985117315,0.91653646,2605.7,2605.1,0.02]
[1748985117515,1.1699,2606.4,2605.1,0.02]
[1748985117735,0.55,2606.3,2605.1,0.02]
[1748985117951,0.55,2606.3,2605.2,1.1553]
[1748985118150,10.33526464,2606.4,2605.2,1.1553]
[1748985118662,0.55,2606.3,2605.2,1.1553]
[1748985118865,9.16536464,2606.1,2605.2,1.1553]
[1748985119049,1.63852646,2606.3,2605.2,1.1553]
[1748985119227,0.55,2605.9,2605.2,1.1553]
[1748985120221,0.55,2605.9,2605.1,0.02]
[1748985121024,0.55,2605.9,2605.2,2.265]
[1748985121822,0.55,2605.9,2605.1,0.02]
[1748985122240,0.55,2605.9,2605.2,2.265]
[1748985122443,9.53632793,2605.6,2605.1,0.02]
[1748985122646,9.53632793,2605.6,2605.2,2.265]
[1748985123546,9.53632793,2605.6,2605.3,2.266]
[1748985123745,1.00863279,2605.8,2605.3,2.266]
[1748985123979,1.42654366,2607.7,2605.3,2.266]
[1748985123980,1.1378,2607.8,2605.3,2.266]
[1748985124290,1.1378,2607.8,2605.4,0.2266]
[1748985124291,1.1378,2607.6,2605.4,0.2266]
[1748985124602,9.53632793,2606.0,2605.3,2.37]
[1748985124884,9.53632793,2606.0,2605.4,2.37]
[1748985125070,9.53632793,2606.0,2605.5,2.37]
[1748985125275,9.53632793,2606.0,2605.6,2.37]
[1748985125475,9.53632793,2606.0,2605.7,2.37]
[1748985125674,10.60374072,2606.0,2605.8,2.37]
[1748985125990,10.60374072,2606.0,2605.9,2.37]
[1748985126142,10.60374072,2606.0,2604.8,8.0]
[1748985126143,0.55,2605.9,2605.6,2.37]
[1748985126340,9.53632793,2605.7,2605.5,2.37]
[1748985127341,0.55,2605.9,2605.5,2.37]
[1748985127664,9.53632793,2605.7,2605.5,2.37]
[1748985128179,10.54496072,2605.7,2605.5,2.37]
[1748985129553,1.00863279,2605.7,2605.5,2.37]
[1748985129975,0.55,2605.9,2605.5,2.37]
[1748985131322,10.60374072,2606.0,2605.5,2.37]
[1748985131323,1.06741279,2606.0,2605.5,2.37]
[1748985131524,1.1378,2606.2,2605.5,2.37]
[1748985131525,0.55,2606.1,2605.5,2.37]
[1748985132322,9.53632793,2606.0,2605.5,2.37]
[1748985134515,8.6498,2606.2,2605.5,2.37]
[1748985134747,1.1378,2606.2,2605.5,2.37]
[1748985135707,9.53632793,2606.5,2605.5,3.5771]
[1748985135903,1.98071264,2606.4,2605.5,3.93481]
[1748985136103,1.07252279,2606.4,2605.5,3.93481]
[1748985139338,9.18043233,2606.2,2605.5,3.93481]
[1748985140305,9.18043233,2606.2,2605.5,3.5771]
[1748985147378,9.18043233,2606.2,2605.5,3.7271]
[1748985148570,0.35859991,2606.1,2605.5,3.7271]
[1748985148768,9.18043233,2606.2,2605.5,3.7271]
[1748985151236,1.07252279,2606.4,2605.5,3.7271]
[1748985151437,10.91933233,2606.6,2605.6,0.37271]
[1748985151744,0.36631929,2606.5,2605.6,0.37271]
[1748985152095,18.30633233,2606.6,2605.6,0.37271]
[1748985152570,18.30033233,2606.6,2605.6,0.37271]
[1748985153455,18.30033233,2606.6,2605.7,2.371]
[1748985153456,9.18043233,2606.3,2605.7,2.371]
[1748985154469,9.18043233,2606.4,2605.7,2.371]
[1748985157679,9.18043233,2606.4,2605.6,0.37271]
[1748985157850,9.18043233,2606.4,2605.7,2.304]
[1748985159577,9.18043233,2606.4,2605.8,1.3162]
[1748985162253,9.56825305,2606.4,2605.8,1.3162]
[1748985163882,9.56825305,2606.4,2605.9,2.304]
[1748985165279,1.83003323,2606.5,2605.9,2.304]
[1748985165446,1.3219,2606.9,2605.9,2.304]
[1748985165447,10.50233233,2606.9,2606.0,1.3157]
[1748985165652,17.79633233,2606.9,2606.1,2.304]
[1748985166394,17.79633233,2606.9,2605.8,8.91236766]
[1748985166580,9.18043233,2606.6,2605.8,8.282]
[1748985166779,9.18043233,2606.6,2605.9,2.304]
[1748985167497,9.18043233,2606.6,2606.0,2.304]
[1748985169595,2.32963323,2606.8,2606.0,2.304]
[1748985169811,10.50233233,2606.9,2606.0,3.49245]
[1748985169986,17.78033233,2606.9,2606.0,3.49245]
[1748985170387,17.77833233,2606.9,2606.0,3.49245]
[1748985170955,1.3219,2606.9,2606.0,3.49245]
[1748985171177,10.50233233,2606.9,2606.0,3.49245]
[1748985171510,1.05023323,2606.8,2606.0,3.49245]
[1748985171813,1.05023323,2606.8,2606.1,1.2987]
[1748985175178,1.05023323,2606.8,2606.1,5.13574739]
[1748985175388,9.20043233,2606.9,2606.1,1.2987]
[1748985176927,0.02,2606.9,2606.1,1.2987]
[1748985178003,0.02,2606.9,2606.0,7.32967754]
[1748985178004,0.02,2606.9,2606.2,2.222]
[1748985181001,0.02,2606.9,2606.3,0.8256]
[1748985181339,0.94004323,2606.9,2606.3,0.8256]
[1748985181756,0.94004323,2606.9,2606.2,2.222]
[1748985181757,9.18043233,2606.4,2606.2,2.222]
[1748985182450,1.2594,2606.6,2606.2,2.222]
[1748985182761,11.35237556,2606.9,2606.2,3.0476]
[1748985183347,11.35237556,2606.9,2606.2,2.222]